bitfinex/quotes_SOLUSD_20250924
["timestamp","ask_amount","ask_price","bid_price","bid_amount"]
[1758719239811,30.2454733,212.27,212.26,0.2]
[1758719240440,50.44129172,212.27,212.26,0.2]
[1758719240621,62.21874496,212.27,212.22,0.2]
[1758719240930,29.42331173,212.23,212.22,0.2]
[1758719241334,30.2354733,212.23,212.22,0.2]
[1758719242428,34.94734249,212.23,212.22,0.2]
[1758719243240,71.20734249,212.23,212.22,0.2]
[1758719245228,100.00592122,212.23,212.18,0.2]
[1758719245430,6.98878503,212.19,212.18,0.2]
[1758719245814,7.65878503,212.19,212.18,0.2]
[1758719246420,12.37154246,212.19,212.18,0.2]
[1758719247430,8.94823073,212.19,212.18,0.2]
[1758719247738,8.27823073,212.19,212.18,0.2]
[1758719247931,3.42331173,212.19,212.18,0.89]
[1758719248126,3.42331173,212.19,212.18,0.2]
[1758719248433,4.85592849,212.22,212.18,0.2]
[1758719248640,3.42331173,212.19,212.18,0.89]
[1758719248845,3.42331173,212.19,212.18,0.2]
[1758719250428,8.13606916,212.19,212.18,0.2]
[1758719250643,3.42331173,212.19,212.18,0.2]
[1758719251328,8.80606916,212.19,212.18,0.2]
[1758719253427,3.42331173,212.19,212.18,0.2]
[1758719254024,3.42331173,212.19,212.18,0.89]
[1758719254237,3.42331173,212.19,212.18,0.2]
[1758719255621,8.13606916,212.19,212.18,0.2]
[1758719255853,8.80606916,212.19,212.18,0.2]
[1758719256145,3.42331173,212.19,212.18,0.2]
[1758719256442,8.13606916,212.19,212.18,0.2]
[1758719257131,3.42331173,212.19,212.18,0.2]
[1758719258646,3.42331173,212.19,212.18,0.89]
[1758719258815,3.42331173,212.19,212.18,0.2]
[1758719259236,3.42331173,212.19,212.18,0.89]
[1758719260243,3.42331173,212.19,212.18,0.2]
[1758719261127,4.09331173,212.19,212.18,0.2]
[1758719261735,8.80606916,212.19,212.18,0.2]
[1758719262165,26.0,212.2,212.18,0.89]
[1758719262441,3.42331173,212.19,212.18,0.2]
[1758719263520,3.42331173,212.19,212.18,0.89]
[1758719263716,26.0,212.2,212.18,0.2]
[1758719263944,3.42331173,212.19,212.18,0.2]
[1758719264685,4.09331173,212.19,212.18,0.2]
[1758719265980,8.80606916,212.19,212.18,0.2]
[1758719266160,26.0,212.19,212.18,0.2]
[1758719266950,8.13580948,212.21,212.18,0.2]
[1758719267378,8.80580948,212.21,212.18,0.2]
[1758719267670,3.42331173,212.2,212.18,0.2]
[1758719268448,8.13580948,212.21,212.18,0.2]
[1758719268751,3.42331173,212.23,212.19,0.69]
[1758719269274,3.42331173,212.23,212.18,0.2]
[1758719269477,3.42331173,212.23,212.19,0.69]
[1758719269701,26.0,212.25,212.2,0.69]
[1758719269851,4.09331173,212.25,212.18,4.91283563]
[1758719270051,3.42331173,212.23,212.18,0.2]
[1758719270250,4.09331173,212.23,212.18,0.89]
[1758719270551,8.80534433,212.23,212.18,0.89]
[1758719271183,4.10331173,212.22,212.18,0.2]
[1758719271488,4.10331173,212.22,212.18,0.87]
[1758719271787,0.68,212.22,212.18,0.87]
[1758719272387,29.42331173,212.26,212.19,0.67]
[1758719272559,29.42331173,212.26,212.2,3.42331173]
[1758719272560,26.0,212.26,212.2,3.42331173]
[1758719272754,26.0,212.26,212.21,0.67]
[1758719273083,34.13454749,212.26,212.22,0.67]
[1758719273266,29.42331173,212.26,212.22,0.67]
[1758719273671,26.0,212.26,212.22,0.67]
[1758719273873,26.0,212.26,212.23,0.67]
[1758719274069,26.0,212.26,212.2,8.13563248]
[1758719274280,29.42331173,212.26,212.21,0.67]
[1758719274690,30.10331173,212.26,212.21,0.67]
[1758719275596,4.10331173,212.28,212.22,5.38209122]
[1758719275892,0.68,212.28,212.22,5.38209122]
[1758719277063,4.10331173,212.32,212.24,3.42331173]
[1758719277278,26.0,212.31,212.25,4.09331173]
[1758719277478,26.0,212.31,212.26,4.71120324]
[1758719277691,0.68,212.32,212.26,8.13451497]
[1758719277993,66.40331173,212.34,212.27,4.09331173]
[1758719278195,62.98,212.34,212.27,0.67]
[1758719278400,30.10331173,212.34,212.27,0.67]
[1758719278568,30.10331173,212.34,212.27,4.09331173]
[1758719278773,0.68,212.33,212.28,4.71075937]
[1758719279089,0.68,212.32,212.28,4.71075937]
[1758719279888,0.68,212.32,212.27,5.38095558]
[1758719280105,4.13331173,212.31,212.24,4.08331173]
[1758719280265,0.71,212.3,212.24,0.66]
[1758719280763,8.13405966,212.29,212.21,4.08331173]
[1758719281066,8.84405966,212.29,212.22,0.66]
[1758719281882,8.84405966,212.29,212.22,8.79527785]
[1758719282080,0.71,212.28,212.22,8.79527785]
[1758719282788,40.45331173,212.32,212.25,3.42331173]
[1758719282991,26.0,212.31,212.26,3.42331173]
[1758719283379,26.71,212.31,212.25,4.08331173]
[1758719283775,26.71,212.31,212.26,4.71120324]
[1758719284070,26.0,212.3,212.25,3.42331173]
[1758719284390,26.71,212.3,212.25,4.08331173]
[1758719284573,26.71,212.3,212.25,8.79461621]
[1758719285788,26.71,212.3,212.25,5.37130448]
[1758719286184,0.71,212.29,212.23,5.37186919]
[1758719286484,0.71,212.29,212.24,3.42331173]
[1758719286882,5.42013063,212.31,212.25,4.08331173]
[1758719287199,0.71,212.31,212.26,3.42331173]
[1758719287489,63.03,212.34,212.28,3.42331173]
[1758719287693,4.13331173,212.37,212.3,3.42331173]
[1758719287870,0.71,212.37,212.31,3.42331173]
[1758719288069,0.71,212.37,212.31,8.13339521]
[1758719288070,5.41876449,212.37,212.31,8.13339521]
[1758719288271,4.70876449,212.37,212.3,5.37029001]
[1758719288472,4.13331173,212.36,212.27,11.77696972]
[1758719288691,0.71,212.35,212.28,6.89991601]
[1758719288884,0.71,212.34,212.28,6.89991601]
[1758719289195,2.89915664,212.33,212.25,4.7114252]
[1758719289495,2.89915664,212.33,212.2,27.89704761]
[1758719289496,2.18915664,212.29,212.21,2.84915664]
[1758719289690,2.89915664,212.28,212.21,2.84915664]
[1758719289879,0.71,212.27,212.21,2.84915664]
[1758719290202,5.421027,212.27,212.21,7.56143616]
[1758719290895,5.421027,212.27,212.21,5.37227952]
[1758719291099,5.421027,212.27,212.21,7.56143616]
[1758719292807,0.71,212.27,212.21,7.56143616]
[1758719293676,26.0,212.31,212.22,0.66]
[1758719293677,5.42055155,212.29,212.22,0.66]
[1758719293877,5.42055155,212.29,212.22,2.84915664]
[1758719294079,5.42055155,212.29,212.23,0.66]
[1758719294900,7.60970819,212.29,212.23,5.37172358]
[1758719295702,0.71,212.29,212.23,5.37172358]
[1758719295876,7.60974696,212.29,212.23,5.37172358]
[1758719296197,0.71,212.28,212.23,4.71172358]
[1758719296386,0.71,212.27,212.23,4.71172358]
[1758719296795,6.89974696,212.29,212.22,4.71209122]
[1758719296984,0.71,212.28,212.22,4.71209122]
[1758719297193,0.71,212.27,212.21,0.66]
[1758719297382,0.71,212.27,212.21,5.37229711]
[1758719297579,4.71059032,212.29,212.21,18.68223693]
[1758719297777,0.71,212.3,212.24,2.18915664]
[1758719298000,0.71,212.3,212.25,0.66]
[1758719298309,26.0,212.32,212.26,2.84915664]
[1758719298479,2.18915664,212.33,212.27,0.66]
[1758719298684,2.89915664,212.33,212.27,0.66]
[1758719299007,2.89915664,212.33,212.28,4.71075937]
[1758719299197,0.71,212.32,212.28,4.71075937]
[1758719300592,0.71,212.31,212.25,2.84915664]
[1758719300990,0.71,212.31,212.26,4.71120324]
[1758719301196,0.71,212.31,212.26,5.43120324]
[1758719302599,0.71,212.31,212.27,0.72]
[1758719303107,0.71,212.31,212.27,5.43090846]
[1758719304804,2.18915664,212.33,212.27,4.71090846]
[1758719305023,26.69,212.34,212.28,0.72]
[1758719305199,26.69,212.34,212.29,4.71053747]
[1758719305403,26.69,212.34,212.29,5.43053747]
[1758719306216,0.69,212.33,212.29,4.71053747]
[1758719306684,0.69,212.33,212.29,5.43053747]
[1758719306888,2.18915664,212.34,212.29,5.43053747]
[1758719307201,2.87915664,212.34,212.29,5.43053747]
[1758719307992,0.69,212.34,212.29,5.43053747]
[1758719308308,2.87915664,212.34,212.29,5.43053747]
[1758719308485,0.69,212.34,212.29,5.43053747]
[1758719309210,0.69,212.33,212.29,5.43053747]
[1758719310103,0.69,212.35,212.3,0.72]
[1758719310409,2.87915664,212.35,212.3,0.72]
[1758719311299,0.69,212.35,212.31,4.71009373]
[1758719311702,0.69,212.35,212.31,5.43009373]
[1758719312015,0.69,212.35,212.31,4.71009373]
[1758719314412,136.08915664,212.36,212.32,0.72]
[1758719314613,136.77915664,212.36,212.31,4.71009373]
[1758719314911,0.69,212.35,212.31,5.43009373]
[1758719315599,0.69,212.35,212.31,4.71009373]
[1758719315783,133.9,212.36,212.31,5.43009373]
[1758719315990,133.9,212.36,212.32,0.72]
[1758719316397,133.9,212.36,212.33,4.70965007]
[1758719317391,133.9,212.36,212.34,0.72]
[1758719317801,0.69,212.39,212.34,0.72]
[1758719318005,0.69,212.38,212.34,2.90915664]
[1758719318496,0.69,212.4,212.35,5.42920649]
[1758719318696,37.05,212.43,212.37,2.18915664]
[1758719319092,37.05,212.43,212.37,2.90915664]
[1758719319307,0.1,212.43,212.36,2.18915664]
[1758719319617,0.69,212.42,212.35,7.61836313]
[1758719319817,0.69,212.41,212.35,7.61836313]
[1758719321094,0.69,212.41,212.35,7.61836313]
[1758719321803,5.39790588,212.41,212.35,7.61836313]
[1758719322007,0.69,212.41,212.35,7.61836313]
[1758719322415,0.69,212.41,212.36,2.18915664]
[1758719322595,0.69,212.4,212.36,2.18915664]
[1758719322794,0.69,212.4,212.35,6.89836313]
[1758719323017,0.69,212.4,212.35,7.61836313]
[1758719323721,0.69,212.4,212.35,6.89836313]
[1758719323908,0.69,212.4,212.36,0.72]
[1758719324107,0.69,212.4,212.36,2.90915664]
[1758719324287,4.70768653,212.42,212.37,2.90915664]
[1758719324493,5.49746826,212.43,212.38,2.90915664]
[1758719324718,5.49746826,212.43,212.39,0.72]
[1758719325623,0.69,212.42,212.37,6.89782786]
[1758719325805,0.69,212.41,212.37,6.89782786]
[1758719326521,5.49746826,212.43,212.37,7.61782786]
[1758719327117,5.39780967,212.42,212.37,6.89782786]
[1758719327321,0.69,212.41,212.36,2.18915664]
[1758719327499,4.70780967,212.42,212.36,2.18915664]
[1758719327706,0.69,212.4,212.36,6.89810609]
[1758719327906,5.39780967,212.42,212.36,7.61810609]
[1758719328614,0.1,212.43,212.38,2.18915664]
[1758719328916,0.1,212.43,212.39,0.72]
[1758719329296,0.79,212.43,212.39,0.72]
[1758719329691,0.79,212.43,212.39,5.42831244]
[1758719330423,0.1,212.43,212.4,0.72]
[1758719330621,0.1,212.43,212.39,4.70831244]
[1758719330997,0.1,212.43,212.4,2.87915664]
[1758719331423,0.1,212.43,212.41,0.69]
[1758719332010,0.1,212.43,212.42,2.87915664]
[1758719334025,0.1,212.43,212.42,2.18915664]
[1758719334209,0.78,212.43,212.39,2.18915664]
[1758719334415,0.68,212.42,212.39,2.18915664]
[1758719334619,0.68,212.41,212.37,2.18915664]
[1758719335132,0.68,212.42,212.37,2.87915664]
[1758719335334,0.68,212.41,212.36,4.70893825]
[1758719335530,4.80749046,212.43,212.36,5.39893825]
[1758719335832,0.68,212.4,212.36,2.18915664]
[1758719336405,0.68,212.4,212.36,2.87915664]
[1758719336915,0.68,212.4,212.36,7.58803576]
[1758719337524,4.7080091,212.41,212.36,7.58803576]
[1758719337715,5.3880091,212.41,212.36,7.58803576]
[1758719338621,0.68,212.4,212.36,2.18915664]
[1758719338820,0.68,212.39,212.36,2.18915664]
[1758719339219,0.68,212.38,212.32,36.26]
[1758719339526,16.47679125,212.42,212.31,2.84915664]
[1758719339527,0.68,212.37,212.31,2.84915664]
[1758719340137,0.68,212.37,212.32,2.18915664]
[1758719340529,5.38881084,212.37,212.32,7.55899627]
[1758719341333,5.38881084,212.37,212.32,5.36983963]
[1758719341630,0.68,212.37,212.33,0.66]
[1758719341830,0.68,212.37,212.33,2.84915664]
[1758719342514,0.68,212.37,212.33,7.55875976]
[1758719343936,0.68,212.37,212.33,5.36960312]
[1758719344538,0.67,212.4,212.33,4.70960312]
[1758719344767,26.0,212.41,212.35,2.18915664]
[1758719344913,26.0,212.41,212.34,0.66]
[1758719344914,0.67,212.4,212.34,2.84915664]
[1758719346243,0.67,212.4,212.35,4.70920649]
[1758719346449,0.67,212.4,212.35,5.36920649]
[1758719347215,0.67,212.4,212.36,0.66]
[1758719347412,5.37768655,212.42,212.35,4.70920649]
[1758719347732,0.67,212.41,212.35,4.70920649]
[1758719348039,0.67,212.41,212.35,5.36920649]
[1758719349826,3.51886884,212.43,212.36,0.66]
[1758719350053,0.1,212.43,212.37,3.41886884]
[1758719350227,0.1,212.43,212.39,3.41886884]
[1758719350422,0.1,212.43,212.4,4.07886884]
[1758719350949,0.1,212.43,212.41,4.07886884]
[1758719351331,0.1,212.43,212.42,0.66]
[1758719351530,0.1,212.43,212.4,3.41886884]
[1758719351758,0.1,212.43,212.41,0.66]
[1758719351954,0.1,212.43,212.42,4.70765464]
[1758719352532,0.1,212.43,212.42,5.36765464]
[1758719353629,0.1,212.43,212.42,8.78652348]
[1758719355863,0.1,212.43,212.39,3.41886884]
[1758719356071,0.77,212.43,212.39,0.66]
[1758719356244,0.67,212.42,212.38,3.41886884]
[1758719356553,4.8074561,212.43,212.38,3.41886884]
[1758719356757,0.67,212.41,212.37,39.65886884]
[1758719356960,0.67,212.41,212.37,44.36756735]
[1758719357351,0.67,212.41,212.37,8.12756735]
[1758719357856,0.67,212.41,212.37,8.78756735]
[1758719358657,4.8074561,212.43,212.37,8.78756735]
[1758719358860,5.4774561,212.43,212.37,8.78756735]
[1758719359056,5.4774561,212.43,212.38,8.12725373]
[1758719359357,5.4774561,212.43,212.38,8.78725373]
[1758719359753,0.67,212.42,212.38,8.78725373]
[1758719359960,0.1,212.43,212.38,8.78725373]
[1758719360269,0.77,212.43,212.39,4.07886884]
[1758719360449,0.77,212.43,212.38,4.70838489]
[1758719360657,0.71,212.42,212.38,8.79725373]
[1758719360848,0.71,212.42,212.37,5.37872169]
[1758719361043,0.71,212.41,212.37,8.12759053]
[1758719361463,0.71,212.4,212.37,8.12759053]
[1758719362050,0.71,212.4,212.37,4.70872169]
[1758719362264,0.71,212.42,212.37,4.70872169]
[1758719362464,0.71,212.42,212.37,8.79759053]
[1758719362845,0.71,212.42,212.38,0.67]
[1758719363266,0.71,212.42,212.37,8.12759053]
[1758719363470,0.71,212.42,212.37,8.79759053]
[1758719363767,0.71,212.41,212.37,8.79759053]
[1758719363987,4.80754285,212.43,212.36,44.3678484]
[1758719364271,0.71,212.4,212.36,40.94897956]
[1758719364480,0.71,212.4,212.36,41.61897956]
[1758719366665,0.71,212.4,212.36,40.94897956]
[1758719366867,0.71,212.39,212.36,36.24]
[1758719367077,0.71,212.38,212.36,36.24]
[1758719367294,0.71,212.37,212.36,36.24]
[1758719367570,0.71,212.37,212.32,36.89]
[1758719367571,5.41893407,212.37,212.32,36.89]
[1758719367877,0.71,212.37,212.32,41.59976166]
[1758719368871,0.71,212.37,212.33,0.67]
[1758719370274,0.71,212.37,212.33,5.37956487]
[1758719370980,0.71,212.36,212.33,4.70956487]
[1758719371358,0.71,212.36,212.32,40.92978292]
[1758719371674,4.12886884,212.38,212.33,0.67]
[1758719371848,0.71,212.37,212.33,0.67]
[1758719372474,0.71,212.37,212.33,4.70960182]
[1758719373659,0.71,212.37,212.33,5.37960182]
[1758719374800,0.71,212.41,212.34,0.67]
[1758719374966,0.71,212.41,212.35,3.41886884]
[1758719375157,0.71,212.41,212.36,36.22]
[1758719375365,0.71,212.41,212.36,36.89]
[1758719375562,0.71,212.4,212.36,36.22]
[1758719375764,8.12758788,212.38,212.32,41.59985791]
[1758719375964,0.71,212.37,212.32,41.59985791]
[1758719377156,5.41876777,212.37,212.32,41.59985791]
[1758719377476,0.71,212.37,212.33,0.67]
[1758719378779,5.41879088,212.37,212.32,36.22]
[1758719378975,0.71,212.36,212.32,36.22]
[1758719379177,0.71,212.35,212.32,36.22]
[1758719379566,5.41834611,212.39,212.33,0.67]
[1758719379962,8.83721495,212.39,212.33,0.67]
[1758719380570,3.41886884,212.38,212.32,40.92983915]
[1758719380765,3.41886884,212.37,212.32,36.22]
[1758719380967,5.41898474,212.36,212.32,36.22]
[1758719381275,0.71,212.35,212.29,8.79935735]
[1758719381464,0.71,212.35,212.3,36.24]
[1758719381665,0.71,212.34,212.3,36.24]
[1758719381864,0.71,212.33,212.3,36.24]
[1758719382461,0.71,212.32,212.28,4.71057412]
[1758719382674,0.71,212.31,212.28,36.24]
[1758719383379,5.41980211,212.33,212.28,36.24]
[1758719383581,0.71,212.32,212.28,36.24]
[1758719384085,4.70980211,212.33,212.28,41.6207522]
[1758719384491,3.41886884,212.35,212.29,0.67]
[1758719384492,8.83827487,212.35,212.29,0.67]
[1758719384966,37.77130388,212.39,212.29,4.08886884]
[1758719384967,8.12788188,212.36,212.29,4.08886884]
[1758719385169,8.12788188,212.36,212.3,5.38031559]
[1758719385375,8.12764416,212.37,212.31,0.67]
[1758719385585,8.83764416,212.37,212.31,0.67]
[1758719386686,8.83764416,212.37,212.31,5.38004846]
[1758719386863,0.71,212.36,212.31,5.38004846]
[1758719387067,0.71,212.35,212.31,0.67]
[1758719387269,0.71,212.34,212.29,5.3805347]
[1758719387485,0.71,212.33,212.29,4.7105347]
[1758719387883,0.71,212.33,212.26,13.59559401]
[1758719387884,3.41886884,212.32,212.26,4.7110211]
[1758719388191,0.71,212.31,212.27,36.22]
[1758719388498,0.71,212.3,212.27,36.22]
[1758719389492,3.41886884,212.32,212.27,40.93096866]
[1758719389669,4.12886884,212.32,212.27,41.60096866]
[1758719390070,8.12877186,212.32,212.27,41.60096866]
[1758719390290,0.71,212.31,212.27,41.60096866]
[1758719391399,5.42011516,212.31,212.27,36.89]
[1758719391577,0.71,212.31,212.27,40.9309469]
[1758719391771,5.43027265,212.31,212.26,36.22]
[1758719392092,5.43027265,212.31,212.26,36.87]
[1758719392300,0.72,212.3,212.26,36.87]
[1758719392793,0.72,212.3,212.26,36.22]
[1758719393995,5.43034829,212.3,212.26,0.65]
[1758719395190,5.43034829,212.3,212.25,41.5812749]
[1758719395565,0.72,212.3,212.25,41.5812749]
[1758719395777,4.13886884,212.32,212.26,0.65]
[1758719396086,4.13886884,212.32,212.26,4.06886884]
[1758719396297,4.13886884,212.32,212.27,0.65]
[1758719396995,8.84808547,212.35,212.28,4.06886884]
[1758719397198,8.84808547,212.35,212.29,0.65]
[1758719397493,3.41886884,212.33,212.27,4.7108271]
[1758719397796,0.72,212.32,212.27,4.7108271]
[1758719398097,0.72,212.31,212.27,4.7108271]
[1758719398282,3.41886884,212.33,212.27,4.7108271]
[1758719398484,4.13886884,212.33,212.28,0.65]
[1758719399380,0.72,212.32,212.26,0.65]
[1758719399593,0.72,212.32,212.25,40.93138409]
[1758719399900,0.69,212.31,212.25,40.93138409]
[1758719400100,0.69,212.31,212.26,0.71]
[1758719400301,0.69,212.3,212.25,44.35025293]
[1758719400501,8.12861559,212.33,212.26,0.71]
[1758719400687,0.69,212.32,212.26,0.71]
[1758719401295,0.69,212.32,212.25,44.35025293]
[1758719401296,4.71009373,212.31,212.25,40.93138409]
[1758719401518,0.69,212.3,212.25,36.22]
[1758719401812,0.69,212.29,212.25,40.93140694]
[1758719401977,4.10886884,212.34,212.26,4.12886884]
[1758719402177,4.10886884,212.34,212.27,0.71]
[1758719402683,0.69,212.34,212.28,3.41886884]
[1758719402884,3.41886884,212.37,212.29,0.71]
[1758719403208,0.69,212.37,212.3,3.41886884]
[1758719403525,0.69,212.37,212.31,5.42009373]
[1758719403682,5.39877747,212.37,212.31,5.42009373]
[1758719404009,3.41886884,212.39,212.32,4.12886884]
[1758719404010,8.81740255,212.39,212.32,4.12886884]
[1758719404198,4.10886884,212.39,212.33,0.71]
[1758719404900,5.3983357,212.39,212.33,0.71]
[1758719405106,0.69,212.39,212.33,0.71]
[1758719405483,5.39833741,212.39,212.33,5.41943347]
[1758719406086,0.69,212.39,212.33,8.83830231]
[1758719406705,0.69,212.38,212.33,8.83830231]
[1758719406886,0.69,212.4,212.34,4.12886884]
[1758719407393,0.69,212.39,212.34,8.83808256]
[1758719407709,26.0,212.42,212.34,19.90165324]
[1758719407901,0.79,212.43,212.37,3.41886884]
[1758719408094,0.79,212.43,212.38,4.12886884]
[1758719408401,26.79,212.43,212.38,3.41886884]
[1758719408583,26.79,212.43,212.38,2.89731988]
[1758719408787,0.79,212.43,212.39,2.18731988]
[1758719408996,0.79,212.43,212.39,0.71]
[1758719409303,0.1,212.43,212.39,2.89731988]
[1758719409476,0.1,212.43,212.4,4.70809792]
[1758719409894,0.1,212.43,212.4,5.41809792]
[1758719410587,0.1,212.43,212.41,2.18731988]
[1758719411201,0.1,212.43,212.42,0.71]
[1758719411381,0.1,212.43,212.42,2.89731988]
[1758719411708,0.1,212.43,212.42,7.60497452]
[1758719415619,0.1,212.43,212.42,4.70765464]
[1758719415803,0.1,212.43,212.41,6.89516064]
[1758719416005,0.79,212.43,212.41,6.89516064]
[1758719416311,0.79,212.43,212.41,4.70784076]
[1758719416688,0.1,212.43,212.41,4.70784076]
[1758719416990,0.1,212.43,212.42,2.18731988]
[1758719417615,0.1,212.43,212.42,6.89497452]
[1758719418010,0.1,212.43,212.42,4.70765464]
[1758719418218,0.1,212.43,212.42,6.89497452]
[1758719419094,0.1,212.43,212.42,4.70765464]
[1758719419300,0.1,212.43,212.4,40.92796951]
[1758719419494,0.69,212.42,212.4,40.92796951]
[1758719421412,0.69,212.42,212.4,4.70796951]
[1758719423618,0.1,212.43,212.39,36.22]
[1758719423818,0.1,212.43,212.36,36.2]
[1758719423819,0.66,212.41,212.36,36.2]
[1758719424017,0.66,212.4,212.36,36.2]
[1758719424322,0.66,212.39,212.36,36.2]
[1758719425091,4.70795576,212.41,212.36,36.2]
[1758719425302,0.66,212.4,212.36,36.2]
[1758719425620,0.66,212.39,212.36,36.2]
[1758719426008,0.66,212.38,212.36,36.2]
[1758719426515,0.66,212.38,212.36,40.90891946]
[1758719427423,0.66,212.38,212.36,36.2]
[1758719427825,0.66,212.38,212.36,40.90892896]
[1758719428115,0.66,212.4,212.36,40.90892896]
[1758719428325,0.66,212.39,212.36,40.90892896]
[1758719429623,4.70804774,212.41,212.36,36.2]
[1758719429624,0.66,212.38,212.36,36.2]
[1758719430534,0.66,212.37,212.33,4.70961546]
[1758719430823,0.66,212.36,212.34,36.2]
[1758719431023,2.18731988,212.38,212.3,40.62259949]
[1758719431024,0.66,212.35,212.31,4.71009373]
[1758719431224,0.66,212.35,212.32,36.2]
[1758719431722,0.66,212.38,212.33,0.66]
[1758719431893,0.66,212.38,212.32,43.09716981]
[1758719432097,7.55545222,212.4,212.34,0.66]
[1758719432298,5.36813234,212.4,212.34,0.66]
[1758719432718,139.26783297,212.42,212.35,38.38731988]
[1758719432914,133.9,212.42,212.38,2.18731988]
[1758719433224,0.76,212.43,212.39,4.7083196]
[1758719433413,0.76,212.43,212.39,5.3683196]
[1758719434529,0.76,212.43,212.39,4.7083196]
[1758719434909,0.76,212.43,212.39,3.7083196]
[1758719435226,0.1,212.43,212.41,4.70787627]
[1758719437229,0.1,212.43,212.41,0.66]
[1758719438840,0.1,212.43,212.4,4.70809792]
[1758719440745,0.66,212.42,212.39,4.708289]
[1758719441106,0.1,212.43,212.39,4.708289]
[1758719441312,0.1,212.43,212.37,2.18731988]
[1758719441313,0.66,212.42,212.37,36.2]
[1758719441513,0.66,212.41,212.35,2.84731988]
[1758719441728,0.66,212.4,212.35,2.84731988]
[1758719442034,0.66,212.41,212.36,2.84731988]
[1758719442405,0.66,212.41,212.37,36.22]
[1758719442613,0.66,212.41,212.37,40.9286999]
[1758719443412,5.36766098,212.42,212.37,41.5886999]
[1758719443612,5.36766098,212.42,212.36,2.18731988]
[1758719443613,2.84731988,212.41,212.33,4.70965007]
[1758719443814,2.18731988,212.39,212.33,36.22]
[1758719444038,2.84731988,212.38,212.33,36.22]
[1758719444312,0.66,212.37,212.33,36.22]
[1758719444540,2.84731988,212.36,212.33,36.22]
[1758719444720,5.36920649,212.35,212.33,36.22]
[1758719444916,0.66,212.34,212.28,5.3707476]
[1758719445115,0.66,212.33,212.29,36.24]
[1758719445324,0.66,212.36,212.3,0.66]
[1758719445520,5.36907546,212.36,212.3,2.84731988]
[1758719445730,0.66,212.35,212.3,0.66]
[1758719445929,0.66,212.34,212.3,0.66]
[1758719446431,0.66,212.34,212.29,36.24]
[1758719446613,0.66,212.34,212.29,36.9]
[1758719446811,0.66,212.34,212.3,4.71031559]
[1758719447030,7.55639534,212.36,212.3,5.37031559]
[1758719447434,0.66,212.35,212.3,5.37031559]
[1758719447619,0.66,212.34,212.3,5.37031559]
[1758719447819,0.66,212.34,212.29,40.95051383]
[1758719448027,0.66,212.33,212.29,41.61051383]
[1758719449642,5.36968382,212.33,212.29,36.24]
[1758719450160,0.66,212.32,212.29,36.24]
[1758719450516,0.66,212.32,212.27,5.37090639]
[1758719450731,0.66,212.32,212.27,41.61090639]
[1758719451236,5.36991918,212.32,212.27,41.61090639]
[1758719451934,0.66,212.32,212.27,40.95090639]
[1758719452127,0.66,212.32,212.28,0.72]
[1758719452619,0.7,212.34,212.29,0.72]
[1758719452826,6.89630462,212.36,212.3,0.72]
[1758719453032,7.59630462,212.36,212.3,0.72]
[1758719453256,7.59630462,212.36,212.3,5.43015777]
[1758719454340,0.7,212.35,212.3,5.43015777]
[1758719454743,0.7,212.34,212.28,4.71058848]
[1758719454922,0.7,212.33,212.28,4.71058848]
[1758719455238,0.7,212.32,212.28,4.71058848]
[1758719455444,0.7,212.32,212.27,41.67095527]
[1758719455648,0.7,212.31,212.27,40.95095527]
[1758719455844,0.7,212.31,212.27,5.43095527]